[Event "Chess Festival Groningen 2023 | A"]
[Site "Groningen, Netherlands"]
[Date "2023.12.29"]
[Round "8.30"]
[White "Kazarjan, Gachatur"]
[Black "Krasenkowa, Elena"]
[Result "1/2-1/2"]
[TimeControl "90min/40moves + 30min + 30sec/move"]
[WhiteElo "2078"]
[BlackElo "2109"]

1. e4 {[%clk 01:30:58]} {[%emt 00:00:29]} d5 {[%clk 01:30:55]} 2. exd5 {[%clk
01:31:24]} {[%emt 00:00:03]} Qxd5 {[%clk 01:31:22]} 3. d4 {[%clk 01:30:08]}
{[%emt 00:01:31]} Nf6 {[%clk 01:31:30]} {[%emt 00:00:23]} 4. Nf3 {[%clk
01:29:59]} {[%emt 00:00:36]} Bg4 {[%clk 01:30:52]} {[%emt 00:01:08]} 5. Be2
{[%clk 01:30:11]} {[%emt 00:00:25]} e6 {[%clk 01:31:09]} {[%emt 00:00:10]} 6.
Be3 {[%clk 01:29:48]} {[%emt 00:00:50]} c6 {[%clk 01:28:27]} {[%emt 00:03:21]}
7. Nbd2 {[%clk 01:28:11]} {[%emt 00:01:56]} h6 {[%clk 01:24:31]} {[%emt
00:04:27]} 8. h3 {[%clk 01:24:58]} {[%emt 00:03:42]} Bh5 {[%clk 01:22:50]}
{[%emt 00:02:14]} 9. O-O {[%clk 01:23:15]} {[%emt 00:02:13]} Be7 {[%clk
01:22:49]} {[%emt 00:00:30]} 10. Ne5 {[%clk 01:22:32]} {[%emt 00:01:11]} Bxe2
{[%clk 01:22:47]} {[%emt 00:00:34]} 11. Qxe2 {[%clk 01:22:50]} {[%emt
00:00:13]} O-O {[%clk 01:22:46]} {[%emt 00:00:30]} 12. Rfd1 {[%clk 01:20:22]}
{[%emt 00:02:57]} Na6 {[%clk 01:08:24]} {[%emt 00:14:52]} 13. Ndf3 {[%clk
01:14:34]} {[%emt 00:06:19]} Nc7 {[%clk 01:06:37]} {[%emt 00:02:15]} 14. Bf4
{[%clk 01:09:28]} {[%emt 00:05:45]} Rac8 {[%clk 01:06:36]} {[%emt 00:00:25]} 15.
c4 {[%clk 01:08:28]} {[%emt 00:01:33]} Qe4 {[%clk 01:06:46]} {[%emt 00:00:17]}
16. Qd2 {[%clk 01:08:32]} {[%emt 00:00:39]} c5 {[%clk 00:55:14]} {[%emt
00:11:45]} 17. Re1 {[%clk 01:04:27]} {[%emt 00:04:35]} Qh7 {[%clk 00:55:36]}
{[%emt 00:00:37]} 18. Rad1 {[%clk 00:37:36]} {[%emt 00:27:03]} cxd4 {[%clk
00:54:20]} {[%emt 00:01:52]} 19. Nxd4 {[%clk 00:36:43]} {[%emt 00:01:09]} Na6
{[%clk 00:51:19]} {[%emt 00:03:28]} 20. a3 {[%clk 00:34:59]} {[%emt 00:02:15]}
Nc5 {[%clk 00:50:35]} {[%emt 00:01:15]} 21. f3 {[%clk 00:28:12]} {[%emt
00:07:20]} Rcd8 {[%clk 00:45:34]} {[%emt 00:05:26]} 22. Kh1 {[%clk 00:17:26]}
{[%emt 00:11:36]} Nh5 {[%clk 00:42:14]} {[%emt 00:03:30]} 23. Bh2 {[%clk
00:14:58]} {[%emt 00:02:57]} Bh4 {[%clk 00:40:35]} {[%emt 00:02:22]} 24. Qe3
{[%clk 00:09:12]} {[%emt 00:06:03]} Bxe1 {[%clk 00:40:08]} {[%emt 00:00:57]} 25.
Rxe1 {[%clk 00:09:40]} {[%emt 00:00:09]} f6 {[%clk 00:38:17]} {[%emt 00:02:14]}
26. Ng4 {[%clk 00:10:04]} {[%emt 00:00:25]} e5 {[%clk 00:37:08]} {[%emt
00:01:20]} 27. Nb5 {[%emt 00:03:30]} Nd3 {[%clk 00:33:18]} {[%emt 00:01:35]} 28.
Re2 {[%emt 00:03:35]} Nhf4 {[%clk 00:26:21]} {[%emt 00:04:18]} 29. Rd2 {[%clk
00:10:01]} {[%emt 00:00:21]} h5 {[%clk 00:24:08]} {[%emt 00:02:44]} 30. Nf2
{[%clk 00:10:01]} {[%emt 00:00:29]} Nxf2+ {[%clk 00:23:17]} {[%emt 00:01:21]}
31. Qxf2 {[%clk 00:10:20]} {[%emt 00:00:23]} Qb1+ {[%clk 00:22:21]} {[%emt
00:01:15]} 32. Bg1 {[%emt 00:02:18]} a6 {[%emt 00:00:33]} 33. Nc3 {[%clk
00:10:47]} {[%emt 00:00:18]} Rxd2 {[%clk 00:19:57]} {[%emt 00:01:02]} 34. Qxd2
{[%clk 00:11:15]} Qd3 {[%clk 00:20:14]} {[%emt 00:00:20]} 35. Qxd3 {[%clk
00:11:35]} Nxd3 {[%clk 00:20:42]} 36. b4 {[%clk 00:12:04]} Rc8 {[%clk
00:19:50]} {[%emt 00:01:15]} 37. c5 {[%emt 00:02:05]} a5 {[%emt 00:04:00]} 38.
Nd5 {[%emt 00:00:56]} Kf7 {[%clk 00:14:16]} {[%emt 00:01:03]} 39. Nb6 {[%emt
00:00:33]} Rc7 {[%clk 00:12:00]} {[%emt 00:02:23]} 40. Nd5 {[%emt 00:03:35]}
Rd7 {[%clk 00:09:34]} {[%emt 00:00:39]} 41. Nb6 {[%emt 00:03:28]} axb4 {[%clk
00:06:18]} {[%emt 00:00:10]} 42. axb4 {[%clk 00:10:54]} {[%emt 00:01:32]} Rd8
{[%clk 00:06:06]} {[%emt 00:00:59]} 43. b5 {[%clk 00:11:16]} Nb4 {[%clk
00:06:24]} {[%emt 00:00:06]} 44. c6 {[%clk 00:08:01]} {[%emt 00:03:32]} Nxc6
{[%clk 00:03:52]} {[%emt 00:03:03]} 45. bxc6 {[%clk 00:08:21]} {[%emt
00:00:08]} bxc6 {[%clk 00:04:21]} {[%emt 00:00:14]} 46. Kh2 {[%clk 00:08:19]}
{[%emt 00:00:43]} Ke6 {[%clk 00:04:33]} {[%emt 00:00:06]} 47. Kg3 {[%clk
00:08:42]} Rd1 {[%clk 00:04:17]} {[%emt 00:00:41]} 48. Be3 {[%clk 00:08:57]}
{[%emt 00:00:27]} Rd3 {[%clk 00:03:58]} {[%emt 00:00:40]} 49. Kf2 {[%clk
00:09:08]} {[%emt 00:00:21]} h4 {[%clk 00:02:45]} {[%emt 00:01:38]} 50. Na4
{[%clk 00:08:47]} {[%emt 00:00:52]} Ra3 {[%clk 00:02:50]} {[%emt 00:00:29]} 51.
Nb6 {[%clk 00:08:54]} {[%emt 00:00:24]} Ra2+ {[%clk 00:03:00]} {[%emt
00:00:15]} 52. Kf1 {[%clk 00:09:15]} {[%emt 00:00:12]} Rc2 {[%clk 00:03:18]}
{[%emt 00:00:08]} 53. Na4 {[%clk 00:08:29]} {[%emt 00:01:17]} Kd6 {[%clk
00:02:42]} {[%emt 00:01:06]} 54. Nb6 {[%clk 00:08:53]} {[%emt 00:00:42]} c5
{[%clk 00:02:33]} {[%emt 00:00:05]} 55. Nc8+ {[%clk 00:09:15]} {[%emt
00:00:07]} Kd7 {[%clk 00:02:34]} {[%emt 00:00:27]} 56. Nb6+ {[%clk 00:09:37]}
{[%emt 00:00:25]} Kc6 {[%clk 00:02:53]} 57. Nc8 {[%clk 00:10:03]} c4 {[%clk
00:02:49]} {[%emt 00:00:52]} 58. Ne7+ {[%clk 00:10:26]} Kd7 {[%clk 00:03:01]}
{[%emt 00:00:15]} 59. Ng6 {[%clk 00:08:16]} {[%emt 00:02:30]} c3 {[%clk
00:03:18]} {[%emt 00:00:13]} 60. Nxh4 {[%clk 00:05:40]} {[%emt 00:03:12]} Ra2
{[%clk 00:02:23]} {[%emt 00:01:18]} 61. Nf5 {[%clk 00:05:35]} {[%emt 00:00:35]}
c2 {[%clk 00:27:28]} {[%emt 00:05:25]} 62. Nxg7 {[%clk 00:35:25]} {[%emt
00:00:39]} Ra1+ {[%clk 00:27:53]} {[%emt 00:00:15]} 63. Kf2 {[%clk 00:35:17]}
{[%emt 00:00:30]} c1=Q {[%clk 00:28:09]} {[%emt 00:00:13]} 64. Bxc1 {[%clk
00:35:42]} {[%emt 00:00:10]} Rxc1 {[%clk 00:28:36]} {[%emt 00:00:03]} 65. g4
{[%clk 00:35:08]} {[%emt 00:00:59]} Ke7 {[%clk 00:28:53]} {[%emt 00:00:16]} 66.
h4 {[%clk 00:35:31]} {[%emt 00:00:07]} Kf7 {[%clk 00:29:20]} {[%emt 00:00:03]}
67. Nf5 {[%clk 00:35:56]} {[%emt 00:00:11]} Rc2+ {[%clk 00:28:53]} {[%emt
00:00:48]} 68. Ke3 {[%clk 00:36:20]} {[%emt 00:00:19]} Ra2 {[%clk 00:27:55]}
{[%emt 00:01:15]} 69. h5 {[%clk 00:36:03]} {[%emt 00:00:47]} Ra4 {[%clk
00:27:45]} {[%emt 00:00:40]} 70. Nd6+ {[%clk 00:35:52]} {[%emt 00:00:42]} Ke6
{[%clk 00:27:28]} {[%emt 00:00:45]} 71. Nf5 {[%clk 00:36:15]} {[%emt 00:00:08]}
Kf7 {[%clk 00:20:44]} {[%emt 00:07:14]} 72. Nd6+ {[%clk 00:34:53]} {[%emt
00:02:02]} Kg7 {[%clk 00:21:02]} {[%emt 00:00:03]} 73. Ne8+ {[%clk 00:35:07]}
{[%emt 00:00:15]} Kf7 {[%clk 00:21:24]} {[%emt 00:00:07]} 74. Nd6+ {[%clk
00:35:29]} {[%emt 00:00:20]} Kf8 {[%clk 00:21:47]} 75. Nf5 {[%clk 00:26:42]}
{[%emt 00:09:14]} Rb4 {[%clk 00:20:35]} {[%emt 00:01:41]} 76. Nd6 {[%clk
00:25:45]} {[%emt 00:01:27]} Kg8 {[%clk 00:19:48]} {[%emt 00:01:16]} 77. Kf2
{[%clk 00:24:37]} {[%emt 00:01:39]} Kh7 {[%clk 00:16:34]} {[%emt 00:03:45]} 78.
Kg3 {[%clk 00:23:47]} {[%emt 00:01:19]} Rb6 {[%clk 00:15:48]} {[%emt 00:01:14]}
79. Nf5 {[%clk 00:23:48]} {[%emt 00:00:32]} Rb3 {[%clk 00:16:03]} {[%emt
00:00:18]} 80. Nd6 {[%clk 00:24:02]} {[%emt 00:00:10]} Ra3 {[%clk 00:14:46]}
{[%emt 00:01:47]} 81. Kf2 {[%clk 00:23:18]} {[%emt 00:01:15]} Ra7 {[%clk
00:10:17]} {[%emt 00:05:04]} 82. Nf5 {[%clk 00:23:00]} {[%emt 00:00:45]} Ra4
{[%clk 00:10:20]} {[%emt 00:00:25]} 83. Nd6 {[%clk 00:23:03]} {[%emt 00:00:27]}
Rd4 {[%clk 00:09:27]} {[%emt 00:01:23]} 84. Ne4 {[%clk 00:22:47]} {[%emt
00:00:46]} Kg7 {[%clk 00:09:40]} {[%emt 00:00:17]} 85. Ng3 {[%clk 00:23:00]}
{[%emt 00:00:15]} Rd3 {[%clk 00:09:32]} {[%emt 00:00:39]} 86. Nf5+ {[%clk
00:23:10]} {[%emt 00:00:20]} Kh7 {[%clk 00:09:59]} {[%emt 00:00:07]} 87. Ke2
{[%clk 00:23:28]} {[%emt 00:00:11]} Ra3 {[%clk 00:10:27]} {[%emt 00:00:08]} 88.
Nd6 {[%clk 00:23:50]} {[%emt 00:00:03]} Kh6 {[%clk 00:10:41]} {[%emt 00:00:15]}
89. Nf7+ {[%clk 00:24:15]} {[%emt 00:00:07]} Kg7 {[%clk 00:11:07]} {[%emt
00:00:12]} 90. Nd6 {[%clk 00:24:30]} {[%emt 00:00:12]} Ra4 {[%clk 00:11:24]}
{[%emt 00:00:06]} 91. Ne8+ {[%clk 00:24:08]} {[%emt 00:00:50]} Kf7 {[%clk
00:11:50]} {[%emt 00:00:11]} 92. Nd6+ {[%clk 00:24:32]} {[%emt 00:00:19]} Ke6
{[%clk 00:13:40]} {[%emt 00:03:42]} 93. Nf5 {[%clk 00:20:39]} {[%emt 00:04:17]}
Ra2+ {[%clk 00:13:52]} {[%emt 00:00:23]} 94. Ke3 {[%clk 00:21:00]} {[%emt
00:00:25]} Rh2 {[%clk 00:13:51]} {[%emt 00:00:08]} 95. Ke4 {[%clk 00:18:29]}
{[%emt 00:03:04]} Re2+ {[%clk 00:13:16]} {[%emt 00:01:03]} 96. Kd3 {[%clk
00:18:54]} {[%emt 00:00:10]} Re1 {[%clk 00:13:35]} {[%emt 00:00:05]} 97. Kd2
{[%clk 00:18:40]} {[%emt 00:00:59]} Ra1 {[%clk 00:12:25]} {[%emt 00:01:29]} 98.
Ke3 {[%clk 00:16:16]} {[%emt 00:03:15]} Ra7 {[%clk 00:12:18]} {[%emt 00:00:11]}
99. Ke4 {[%clk 00:16:15]} {[%emt 00:00:38]} Rb7 {[%clk 00:12:31]} {[%emt
00:00:10]} 100. Kd3 {[%clk 00:14:48]} {[%emt 00:01:59]} Ra7 {[%clk 00:10:59]}
{[%emt 00:02:01]} 101. Ke4 {[%clk 00:14:30]} {[%emt 00:00:59]} Ra4+ {[%clk
00:11:25]} {[%emt 00:00:09]} 102. Ke3 {[%clk 00:14:52]} Ra1 {[%clk 00:10:39]}
{[%emt 00:01:33]} 103. Kd3 {[%clk 00:14:38]} {[%emt 00:00:22]} Rd1+ {[%clk
00:10:02]} {[%emt 00:01:07]} 104. Ke3 {[%clk 00:14:12]} {[%emt 00:00:53]} Rf1
{[%clk 00:09:24]} {[%emt 00:01:07]} 105. Ke2 {[%clk 00:13:38]} {[%emt
00:01:05]} Rh1 {[%clk 00:09:34]} {[%emt 00:00:19]} 106. Kd3 {[%clk 00:13:30]}
{[%emt 00:00:39]} Re1 {[%clk 00:06:59]} {[%emt 00:03:04]} 107. Kd2 {[%clk
00:13:43]} {[%emt 00:00:17]} Ra1 {[%clk 00:07:12]} {[%emt 00:00:17]} 108. Ke3
{[%clk 00:13:49]} {[%emt 00:00:24]} Ra4 {[%clk 00:07:13]} {[%emt 00:00:30]} 109.
Kd3 {[%clk 00:13:13]} {[%emt 00:01:06]} e4+ {[%clk 00:06:43]} {[%emt 00:01:00]}
110. fxe4 {[%clk 00:08:49]} {[%emt 00:04:55]} Ke5 {[%clk 00:05:31]} {[%emt
00:01:40]} 111. Ne7 {[%clk 00:03:49]} {[%emt 00:05:33]} Ra3+ {[%clk 00:03:04]}
{[%emt 00:02:56]} 112. Ke2 {[%clk 00:03:21]} {[%emt 00:00:56]} Rg3 {[%clk
00:01:19]} {[%emt 00:02:11]} 113. h6 {[%clk 00:01:47]} {[%emt 00:02:20]} Rh3
{[%clk 00:00:57]} {[%emt 00:00:39]} 114. Ng8 {[%clk 00:01:43]} {[%emt
00:00:35]} Rg3 {[%clk 00:00:47]} {[%emt 00:00:42]} 115. Ne7 {[%clk 00:01:27]}
{[%emt 00:00:46]} Kxe4 {[%clk 00:00:46]} {[%emt 00:00:29]} 116. Ng8 {[%clk
00:00:59]} {[%emt 00:01:00]} Ke5 {[%clk 00:00:50]} {[%emt 00:00:23]} 117. Kf2
{[%clk 00:01:27]} {[%emt 00:00:05]} Rxg4 {[%emt 00:00:38]} 118. Ne7 {[%emt
00:00:26]} Ke6 {[%clk 00:00:56]} 119. h7 {[%emt 00:00:31]} Rh4 {[%clk
00:00:59]} 120. Ng6 Rxh7 {[%clk 00:00:42]} 121. Nf8+ {[%clk 00:03:02]} {[%emt
00:00:31]} Kf7 {[%clk 00:01:07]} {[%emt 00:00:03]} 122. Nxh7 {[%clk 00:03:28]}
f5 {[%clk 00:01:29]} 123. Kf3 {[%clk 00:03:50]} {[%emt 00:00:04]} Kg6 {[%clk
00:01:58]} 124. Kf4 {[%clk 00:04:15]} {[%emt 00:00:03]} Kxh7 {[%clk 00:02:24]}
{[%emt 00:00:03]} 125. Kxf5 {[%clk 00:04:42]} {[%emt 00:00:03]} 1/2-1/2

[Event "Chess Festival Groningen 2023 | A"]
[Site "Groningen, Netherlands"]
[Date "2023.12.29"]
[Round "8.31"]
[White "Groenewoud, Joel"]
[Black "Schuricht, Emil Frederick"]
[Result "1/2-1/2"]
[TimeControl "90min/40moves + 30min + 30sec/move"]
[WhiteElo "1997"]
[BlackElo "2095"]

1. e4 {[%clk 00:55:18]} c6 {[%clk 00:55:14]} 2. Nf3 {[%clk 00:55:18]} d5 3. Nc3
{[%clk 00:55:18]} dxe4 {[%clk 00:55:14]} 4. Nxe4 {[%clk 00:55:18]} Nf6 {[%clk
00:55:14]} 5. Qe2 {[%clk 00:55:18]} Nxe4 {[%clk 00:55:14]} 6. Qxe4 {[%clk
00:55:18]} Qa5 {[%clk 00:55:14]} 7. b4 {[%clk 00:55:18]} Qf5 {[%clk 00:55:14]}
8. Qe3 {[%clk 00:55:18]} Qe6 {[%clk 00:55:14]} 9. a4 {[%clk 00:55:18]} f6
{[%clk 00:55:14]} 10. a5 {[%clk 00:55:18]} a6 {[%clk 00:55:14]} 11. d4 {[%clk
00:55:18]} Qxe3+ {[%clk 00:55:14]} 12. fxe3 {[%clk 00:55:18]} Bf5 {[%clk
00:55:14]} 13. c3 {[%clk 00:55:18]} Nd7 {[%clk 00:55:14]} 14. Bc4 {[%clk
00:55:18]} Be4 {[%clk 00:55:14]} 15. O-O {[%clk 00:55:18]} Bd5 {[%clk
00:55:14]} 16. Be2 {[%clk 00:55:18]} e5 {[%clk 00:55:14]} 17. Rd1 {[%clk
00:55:18]} O-O-O {[%clk 00:55:14]} 18. Ba3 {[%clk 00:55:18]} Kb8 {[%clk
00:55:14]} 19. c4 {[%clk 00:55:18]} Bf7 {[%clk 00:55:14]} 20. dxe5 {[%clk
00:55:18]} Be7 {[%clk 00:55:14]} 21. exf6 {[%clk 00:55:18]} Bxf6 {[%clk
00:55:14]} 22. Rac1 {[%clk 00:55:18]} Bh5 {[%clk 00:55:14]} 23. Kf2 {[%clk
00:55:18]} Rhe8 {[%clk 00:55:14]} 24. b5 {[%clk 00:55:18]} c5 {[%clk 00:55:14]}
25. Rd5 {[%clk 00:55:18]} Bf7 {[%clk 00:55:14]} 26. Rd2 {[%clk 00:55:18]} Ne5
{[%clk 00:55:14]} 27. Rxd8+ {[%clk 00:55:18]} Bxd8 {[%clk 00:55:14]} 28. Nxe5
{[%clk 00:55:18]} Rxe5 {[%clk 00:55:14]} 29. b6 {[%clk 00:55:18]} Bh4+ {[%clk
00:55:14]} 30. g3 {[%clk 00:55:18]} Bg5 {[%clk 00:55:14]} 31. Rc3 {[%clk
00:55:18]} Bf6 {[%clk 00:55:14]} 32. Rc2 {[%clk 00:55:18]} Bg6 {[%clk
00:55:14]} 33. Ra2 {[%clk 00:55:18]} Bb1 {[%clk 00:55:14]} 1/2-1/2

[Event "Chess Festival Groningen 2023 | A"]
[Site "Groningen, Netherlands"]
[Date "2023.12.29"]
[Round "8.32"]
[White "Mohtaat, Homayoun"]
[Black "Van Der Leest, Bert"]
[Result "0-1"]
[TimeControl "90min/40moves + 30min + 30sec/move"]
[WhiteFideId "11701552"]
[BlackFideId "1009460"]
[WhiteElo "2013"]
[BlackElo "2142"]

1. d4 Nf6 {[%clk 00:00:00]} 2. Nc3 g6 {[%clk 00:00:00]} 3. e4 d6 {[%clk
00:00:00]} 4. Be2 Bg7 {[%clk 00:00:00]} 5. Be3 a6 {[%clk 00:00:00]} 6. g4 c5
{[%clk 00:00:00]} 7. dxc5 Qa5 {[%clk 00:00:00]} 8. f3 dxc5 {[%clk 00:00:00]} 9.
h4 Nc6 {[%clk 00:00:00]} 10. Nh3 h5 {[%clk 00:00:00]} 11. g5 Nd7 {[%clk
00:00:00]} 12. Bd2 Qd8 {[%clk 00:00:00]} 13. Nf2 b5 {[%clk 00:00:00]} 14. Rb1
Bb7 {[%clk 00:00:00]} 15. Nd5 e6 {[%clk 00:00:00]} 16. Ne3 Nd4 {[%clk
00:00:00]} 17. c3 Nxe2 {[%clk 00:00:00]} 18. Qxe2 c4 {[%clk 00:00:00]} 19. O-O
Qc7 {[%clk 00:00:00]} 20. Ng2 Rd8 {[%clk 00:00:00]} 21. Be3 Nc5 {[%clk
00:00:00]} 22. Rbd1 O-O {[%clk 00:00:00]} 23. Bd4 e5 {[%clk 00:00:00]} 24. Bxc5
Qxc5 {[%clk 00:00:00]} 25. Rd2 f6 {[%clk 00:00:00]} 26. Rfd1 Rxd2 {[%clk
00:00:00]} 27. Qxd2 fxg5 {[%clk 00:00:00]} 28. Qd6 Qxd6 {[%clk 00:00:00]} 29.
Rxd6 Rxf3 {[%clk 00:00:00]} 30. Rxg6 g4 {[%clk 00:00:00]} 31. Rb6 Rf7 {[%clk
00:00:00]} 32. Re6 g3 {[%clk 00:00:00]} 33. Nh1 Rf3 {[%clk 00:00:00]} 34. Rg6
Bxe4 {[%clk 00:00:00]} 35. Rg5 Rd3 {[%clk 00:00:00]} 36. Nxg3 Rd1+ {[%clk
00:00:00]} 37. Kh2 Bf3 {[%clk 00:00:00]} 38. Nf5 Rd7 {[%clk 00:00:00]} 39. Nge3
e4 {[%clk 00:00:00]} 40. Rg6 Kf8 {[%clk 00:00:00]} 41. Nxg7 Rxg7 {[%clk
00:00:00]} 42. Rxa6 Rd7 {[%clk 00:00:00]} 43. Kg3 Rd2 {[%clk 00:00:00]} 44. Rb6
Rxb2 {[%clk 00:00:00]} 45. Nxc4 Rg2+ {[%clk 00:00:00]} {Notation unreadable
[+20] } 0-1

[Event "Chess Festival Groningen 2023 | A"]
[Site "Groningen, Netherlands"]
[Date "2023.12.30"]
[Round "9.1"]
[White "Romanov, Evgeny"]
[Black "Panda, Sambit"]
[Result "1-0"]
[TimeControl "90min/40moves + 30min + 30sec/move"]
[BlackFideId "25091794"]
[WhiteElo "2561"]
[BlackElo "2404"]

1. d4 {[%clk 01:30:43]} {[%emt 00:00:16]} d5 {[%clk 01:30:04]} {[%emt
00:00:57]} 2. c4 {[%clk 01:31:01]} {[%emt 00:00:11]} e6 {[%clk 01:30:29]}
{[%emt 00:00:05]} 3. Nc3 {[%clk 01:31:11]} {[%emt 00:00:20]} Nf6 {[%clk
01:30:51]} {[%emt 00:00:09]} 4. Nf3 {[%clk 01:30:29]} {[%emt 00:01:11]} a6
{[%clk 01:31:16]} {[%emt 00:00:06]} 5. c5 {[%clk 01:25:22]} {[%emt 00:05:37]}
b6 {[%clk 01:31:29]} {[%emt 00:00:16]} 6. cxb6 {[%clk 01:25:45]} {[%emt
00:00:07]} c5 {[%clk 01:30:54]} {[%emt 00:01:04]} 7. Na4 {[%clk 01:24:13]}
{[%emt 00:02:03]} cxd4 {[%clk 01:20:47]} {[%emt 00:10:36]} 8. Bf4 {[%clk
01:22:33]} {[%emt 00:02:10]} Bb4+ {[%clk 01:10:12]} {[%emt 00:11:06]} 9. Bd2
{[%clk 01:22:37]} {[%emt 00:00:25]} Qd6 {[%clk 00:48:07]} {[%emt 00:22:36]} 10.
Rc1 {[%clk 01:10:37]} {[%emt 00:12:29]} Nbd7 {[%clk 00:41:12]} {[%emt
00:07:25]} 11. g3 {[%clk 00:48:52]} {[%emt 00:22:15]} e5 {[%clk 00:34:26]}
{[%emt 00:07:16]} 12. Bg2 {[%clk 00:47:29]} {[%emt 00:01:53]} O-O {[%clk
00:30:45]} {[%emt 00:04:12]} 13. O-O {[%clk 00:47:51]} {[%emt 00:00:07]} Bxd2
{[%clk 00:21:03]} {[%emt 00:10:13]} 14. Qxd2 {[%clk 00:47:37]} {[%emt
00:00:44]} Re8 {[%clk 00:20:01]} {[%emt 00:01:33]} 15. e3 {[%clk 00:39:13]}
{[%emt 00:08:53]} d3 {[%clk 00:18:15]} {[%emt 00:02:17]} 16. Nh4 {[%clk
00:24:29]} {[%emt 00:15:13]} Nxb6 {[%clk 00:09:42]} {[%emt 00:09:03]} 17. Nxb6
{[%clk 00:24:48]} {[%emt 00:00:11]} Qxb6 {[%clk 00:10:06]} {[%emt 00:00:06]} 18.
Qxd3 {[%clk 00:25:09]} {[%emt 00:00:09]} e4 {[%clk 00:09:55]} {[%emt 00:00:41]}
19. Qa3 {[%clk 00:25:14]} {[%emt 00:00:25]} Bd7 {[%clk 00:09:00]} {[%emt
00:01:25]} 20. Bh1 {[%clk 00:21:19]} {[%emt 00:04:25]} g5 {[%clk 00:07:14]}
{[%emt 00:02:16]} 21. Ng2 {[%clk 00:21:36]} {[%emt 00:00:13]} Bb5 {[%clk
00:04:12]} {[%emt 00:03:33]} 22. Rfd1 {[%clk 00:21:40]} {[%emt 00:00:25]} Qe6
{[%clk 00:01:59]} {[%emt 00:02:43]} 23. Ne1 {[%clk 00:21:00]} {[%emt 00:01:10]}
Ng4 {[%clk 00:02:06]} {[%emt 00:00:24]} 24. Bg2 {[%emt 00:03:01]} Ne5 {[%clk
00:01:49]} 25. Rc5 {[%clk 00:05:00]} {[%emt 00:14:46]} Rad8 {[%clk 00:01:41]}
{[%emt 00:00:38]} 26. Qb3 {[%clk 00:04:46]} {[%emt 00:00:43]} Bc4 {[%clk
00:01:00]} {[%emt 00:01:11]} 27. Qc3 {[%clk 00:05:03]} {[%emt 00:00:13]} Be2
{[%clk 00:00:38]} {[%emt 00:00:53]} 28. Rd2 {[%clk 00:04:32]} {[%emt 00:01:01]}
Nf3+ {[%clk 00:00:44]} {[%emt 00:00:24]} 29. Nxf3 {[%clk 00:03:58]} {[%emt
00:01:04]} exf3 {[%clk 00:01:08]} {[%emt 00:00:06]} 30. Bf1 {[%clk 00:02:22]}
{[%emt 00:02:06]} Bxf1 {[%clk 00:01:01]} {[%emt 00:00:38]} 31. Kxf1 {[%clk
00:02:50]} {[%emt 00:00:01]} Qh3+ {[%clk 00:01:17]} {[%emt 00:00:13]} 32. Ke1
{[%clk 00:03:20]} {[%emt 00:00:01]} Qxh2 {[%clk 00:01:32]} {[%emt 00:00:15]} 33.
Kd1 {[%clk 00:03:44]} {[%emt 00:00:05]} Qg1+ {[%clk 00:00:48]} {[%emt
00:01:14]} 34. Kc2 {[%clk 00:04:12]} {[%emt 00:00:02]} h6 {[%clk 00:00:37]}
{[%emt 00:00:41]} 35. Rc6 {[%clk 00:03:20]} {[%emt 00:01:23]} d4 {[%clk
00:00:37]} {[%emt 00:00:31]} 36. exd4 {[%clk 00:02:00]} {[%emt 00:01:49]} g4
{[%clk 00:00:37]} {[%emt 00:00:29]} 37. d5 {[%clk 00:01:19]} {[%emt 00:01:11]}
Re2 {[%clk 00:00:38]} {[%emt 00:00:28]} 38. Rxh6 {[%clk 00:01:28]} {[%emt
00:00:21]} f6 {[%clk 00:00:40]} {[%emt 00:00:28]} 39. Rxf6 {[%clk 00:01:19]}
{[%emt 00:00:39]} Rxd5 {[%clk 00:00:33]} {[%emt 00:00:38]} 40. Qc8+ {[%clk
00:01:10]} {[%emt 00:00:38]} Kh7 {[%clk 00:00:36]} {[%emt 00:00:26]} 41. Qb7+
{[%clk 00:01:31]} {[%emt 00:00:09]} 1-0